fUST/lending_fUST_20250627
["ID","MTS","AMOUNT","RATE_DAILY","PERIOD"]
[368125084,1751032247001,-1400.0,0.00023109,2]
[368125086,1751032247010,-1600.0,0.00023136,2]
[368125088,1751032247020,-1400.0,0.00023179,2]
[368125090,1751032247029,-1600.0,0.00023191,2]
[368125092,1751032247039,-15498.2,0.000232,7]
[368125094,1751032247048,-216581.3,0.000232,7]
[368125096,1751032247057,-1600.0,0.00023203,2]
[368125098,1751032247066,-6204.46356053,0.0002321,8]
[368125100,1751032247075,-900.0,0.00023211,2]
[368125102,1751032247084,-1600.0,0.00023233,2]
[368125104,1751032247094,-697.0,0.00023264,2]
[368125106,1751032247103,-652.89,0.00023287,2]
[368125108,1751032247113,-460.0,0.00023287,2]
[368125110,1751032247122,-2172.8,0.00023287,2]
[368125112,1751032247131,-1061.75,0.00023287,2]
[368125114,1751032247140,-817.76,0.00023287,2]
[368125116,1751032247150,-460.0,0.00023287,2]
[368125118,1751032247159,-2093.98,0.00023287,2]
[368125120,1751032247169,-462.9,0.00023287,2]
[368125122,1751032247178,-585.84,0.00023287,2]
[368125124,1751032247188,-205.80653532,0.00023287,2]
[368125126,1751032247198,-760.73,0.00023287,2]
[368125128,1751032247208,-994.85,0.00023287,2]
[368125130,1751032247217,-707.37,0.00023287,2]
[368125132,1751032247226,-460.0,0.00023287,2]
[368125134,1751032247237,-460.0,0.00023287,2]
[368125136,1751032247247,-460.0,0.00023287,2]
[368125138,1751032247256,-1474.22,0.00023287,2]
[368125140,1751032247265,-460.0,0.00023287,2]
[368125143,1751032247277,-1115.8,0.00023287,2]
[368125145,1751032247287,-2078.45,0.00023287,2]
[368125147,1751032247296,-1750.13,0.00023287,2]
[368125149,1751032247306,-460.0,0.00023287,2]
[368125151,1751032247315,-1434.41,0.00023287,2]
[368125153,1751032247325,-460.0,0.00023287,2]
[368125155,1751032247334,-460.0,0.00023287,2]
[368125157,1751032247344,-151.0,0.00023288,2]
[368125159,1751032247354,-546.13404743,0.0002329,4]
[368125161,1751032247364,-546.13404743,0.0002329,4]
[368125162,1751032247373,-546.13404743,0.0002329,4]
[368125164,1751032247383,-546.13404743,0.0002329,4]
[368125166,1751032247392,-546.13404743,0.0002329,4]
[368125168,1751032247402,-546.13404743,0.0002329,4]
[368125170,1751032247411,-546.13404743,0.0002329,4]
[368125172,1751032247422,-546.13404743,0.0002329,4]
[368125174,1751032247432,-546.13404743,0.0002329,4]
[368125176,1751032247446,-546.13404743,0.0002329,4]
[368125179,1751032247456,-546.13404743,0.0002329,4]
[368125181,1751032247465,-546.13404743,0.0002329,4]
[368125183,1751032247474,-546.13404743,0.0002329,4]
[368125185,1751032247486,-546.13404743,0.0002329,4]
[368125187,1751032247495,-546.13404743,0.0002329,4]
[368125188,1751032247505,-546.13404743,0.0002329,4]
[368125190,1751032247515,-546.13404743,0.0002329,4]
[368125192,1751032247525,-546.13404743,0.0002329,4]
[368125194,1751032247534,-546.13404743,0.0002329,4]
[368125196,1751032247544,-546.13,0.0002329,4]
[368125198,1751032247553,-1274.31277733,0.0002329,4]
[368125200,1751032247563,-1274.31277733,0.0002329,4]
[368125202,1751032247572,-1274.31277733,0.0002329,4]
[368125204,1751032247582,-1274.31277733,0.0002329,4]
[368125206,1751032247592,-1274.31277733,0.0002329,4]
[368125208,1751032247601,-1274.31277733,0.0002329,4]
[368125210,1751032247610,-1274.31277733,0.0002329,4]
[368125212,1751032247620,-1274.31277733,0.0002329,4]
[368125214,1751032247629,-1274.31277733,0.0002329,4]
[368125216,1751032247639,-1274.31277733,0.0002329,4]
[368125218,1751032247649,-1274.31277733,0.0002329,4]
[368125220,1751032247658,-1274.31277733,0.0002329,4]
[368125222,1751032247668,-1274.31277733,0.0002329,4]
[368125224,1751032247678,-1274.31277733,0.0002329,4]
[368125226,1751032247688,-150.0,0.0002329,4]
[368125228,1751032247697,-150.0,0.0002329,4]
[368125230,1751032247707,-150.0,0.0002329,4]
[368125233,1751032247725,-150.0,0.0002329,4]
[368125235,1751032247736,-150.0,0.0002329,4]
[368125237,1751032247746,-150.0,0.0002329,4]
[368125239,1751032247756,-150.0,0.0002329,4]
[368125241,1751032247766,-150.0,0.0002329,4]
[368125244,1751032247777,-150.0,0.0002329,4]
[368125247,1751032247796,-150.0,0.0002329,4]
[368125249,1751032247812,-150.0,0.0002329,4]
[368125252,1751032247827,-150.0,0.0002329,4]
[368125254,1751032247841,-150.0,0.0002329,4]
[368125257,1751032247856,-150.0,0.0002329,4]
[368125259,1751032247868,-150.0,0.0002329,4]
[368125261,1751032247880,-150.0,0.0002329,4]
[368125264,1751032247893,-150.0,0.0002329,4]
[368125266,1751032247907,-150.0,0.0002329,4]
[368125269,1751032247919,-150.0,0.0002329,4]
[368125271,1751032247932,-150.0,0.0002329,4]
[368125273,1751032247944,-350.0,0.0002329,4]
[368125276,1751032247957,-350.0,0.0002329,4]
[368125278,1751032247970,-350.0,0.0002329,4]
[368125281,1751032247984,-350.0,0.0002329,4]
[368125283,1751032247997,-350.0,0.0002329,4]
[368125285,1751032248009,-350.0,0.0002329,4]
[368125288,1751032248023,-350.0,0.0002329,4]
[368125290,1751032248036,-350.0,0.0002329,4]
[368125292,1751032248048,-350.0,0.0002329,4]
[368125295,1751032248060,-350.0,0.0002329,4]
[368125297,1751032248075,-350.0,0.0002329,4]
[368125300,1751032248089,-350.0,0.0002329,4]
[368125302,1751032248103,-350.0,0.0002329,4]
[368125305,1751032248117,-350.0,0.0002329,4]
[368125307,1751032248130,-298.10111853,0.0002329,4]
[368125309,1751032248142,-298.10111853,0.0002329,4]
[368125312,1751032248155,-298.10111853,0.0002329,4]
[368125314,1751032248167,-298.10111853,0.0002329,4]
[368125316,1751032248178,-298.10111853,0.0002329,4]
[368125318,1751032248188,-298.10111853,0.0002329,4]
[368125320,1751032248202,-298.10111853,0.0002329,4]
[368125323,1751032248213,-298.10111853,0.0002329,4]
[368125325,1751032248227,-298.10111853,0.0002329,4]
[368125328,1751032248242,-298.10111853,0.0002329,4]
[368125330,1751032248254,-298.10111853,0.0002329,4]
[368125332,1751032248268,-298.10111853,0.0002329,4]
[368125335,1751032248281,-298.10111853,0.0002329,4]
[368125337,1751032248294,-298.10111853,0.0002329,4]
[368125339,1751032248307,-298.10111853,0.0002329,4]
[368125342,1751032248320,-298.10111853,0.0002329,4]
[368125344,1751032248333,-298.10111853,0.0002329,4]
[368125346,1751032248347,-298.10111853,0.0002329,4]
[368125349,1751032248359,-298.10111853,0.0002329,4]
[368125351,1751032248370,-298.1,0.0002329,4]
[368125353,1751032248381,-695.56927658,0.0002329,4]
[368125355,1751032248392,-695.56927658,0.0002329,4]
[368125357,1751032248403,-695.56927658,0.0002329,4]
[368125360,1751032248416,-695.56927658,0.0002329,4]
[368125362,1751032248429,-695.56927658,0.0002329,4]
[368125364,1751032248445,-695.56927658,0.0002329,4]
[368125367,1751032248457,-695.56927658,0.0002329,4]
[368125369,1751032248469,-695.56927658,0.0002329,4]
[368125371,1751032248482,-695.56927658,0.0002329,4]
[368125373,1751032248494,-695.56927658,0.0002329,4]
[368125375,1751032248506,-695.56927658,0.0002329,4]
[368125378,1751032248518,-695.56927658,0.0002329,4]
[368125380,1751032248531,-695.56927658,0.0002329,4]
[368125382,1751032248543,-695.56927658,0.0002329,4]
[368125384,1751032248554,-900.0,0.00023292,2]
[368125386,1751032248564,-3142.22,0.000233,7]
[368125389,1751032248575,-1274.31277733,0.00023303,4]
[368125391,1751032248586,-350.0,0.00023303,4]
[368125393,1751032248598,-695.56927658,0.00023303,4]
[368125395,1751032248610,-151.0,0.00023315,2]
[368125397,1751032248622,-1400.0,0.00023333,2]
[368125399,1751032248634,-151.0,0.00023343,2]
[368125402,1751032248646,-500.0,0.00023367,2]
[368125404,1751032248658,-1000.0,0.00023367,2]
[368125406,1751032248670,-1000.0,0.00023367,2]
[368125408,1751032248681,-1000.0,0.00023367,2]
[368125411,1751032248693,-1000.0,0.00023367,2]
[368125413,1751032248706,-500.0,0.00023367,2]
[368125415,1751032248717,-1001.34400268,0.00023369,2]
[368125417,1751032248729,-217.90292315,0.0002337,2]
[368125419,1751032248741,-307.4082959,0.00023397,2]
[368125422,1751032248753,-1400.0,0.0002341,2]
[368125424,1751032248766,-6204.46356053,0.00023417,9]
[368125426,1751032248777,-1274.31277733,0.00023422,4]
[368125428,1751032248789,-350.0,0.00023422,4]
[368125430,1751032248800,-695.56927658,0.00023422,4]
[368125433,1751032248812,-900.0,0.00023424,2]
[368125435,1751032248823,-306.0,0.00023425,2]
[368125437,1751032248835,-306.0,0.00023425,2]
[368125439,1751032248846,-318.4789722,0.00023425,2]
[368125441,1751032248858,-153.0,0.00023425,2]
[368125443,1751032248870,-153.0,0.00023425,2]
[368125446,1751032248883,-153.0,0.00023425,2]
[368125448,1751032248894,-1600.0,0.00023435,2]
[368125450,1751032248906,-1400.0,0.00023454,2]
[368125452,1751032248918,-900.0,0.00023491,2]
[368125454,1751032248929,-697.0,0.00023538,2]
[368125456,1751032248940,-1274.31277733,0.00023542,4]
[368125459,1751032248951,-350.0,0.00023542,4]
[368125461,1751032248963,-695.56927658,0.00023542,4]
[368125463,1751032248974,-329.96,0.00023561,2]
[368125465,1751032248985,-329.96,0.00023561,2]
[368125467,1751032248996,-329.96,0.00023561,2]
[368125469,1751032249008,-329.96,0.00023561,2]
[368125471,1751032249020,-329.96,0.00023561,2]
[368125473,1751032249032,-329.96,0.00023561,2]
[368125476,1751032249043,-329.96,0.00023561,2]
[368125478,1751032249055,-329.96,0.00023561,2]
[368125480,1751032249067,-329.96,0.00023561,2]
[368125482,1751032249078,-329.96,0.00023561,2]
[368125484,1751032249092,-329.96,0.00023561,2]
[368125487,1751032249103,-329.96,0.00023561,2]
[368125489,1751032249114,-329.96,0.00023561,2]
[368125491,1751032249125,-329.96,0.00023561,2]
[368125493,1751032249136,-329.96,0.00023561,2]
[368125495,1751032249147,-329.96,0.00023561,2]
[368125497,1751032249158,-329.96,0.00023561,2]
[368125499,1751032249169,-652.89,0.00023561,2]
[368125502,1751032249182,-152.41523875,0.00023561,2]
[368125504,1751032249194,-2172.8,0.00023561,2]
[368125506,1751032249206,-1061.75,0.00023561,2]
[368125508,1751032249217,-817.76,0.00023561,2]
[368125510,1751032249229,-460.0,0.00023561,2]
[368125512,1751032249242,-2093.98,0.00023561,2]
[368125514,1751032249254,-462.9,0.00023561,2]
[368125517,1751032249266,-585.84,0.00023561,2]
[368125519,1751032249277,-760.73,0.00023561,2]
[368125521,1751032249288,-994.85,0.00023561,2]
[368125523,1751032249299,-707.37,0.00023561,2]
[368125525,1751032249311,-460.0,0.00023561,2]
[368125527,1751032249323,-460.0,0.00023561,2]
[368125529,1751032249335,-460.0,0.00023561,2]
[368125531,1751032249346,-1474.22,0.00023561,2]
[368125533,1751032249357,-460.0,0.00023561,2]
[368125536,1751032249369,-1115.8,0.00023561,2]
[368125538,1751032249380,-2078.45,0.00023561,2]
[368125540,1751032249391,-1750.13,0.00023561,2]
[368125542,1751032249403,-460.0,0.00023561,2]
[368125544,1751032249415,-1434.41,0.00023561,2]
[368125546,1751032249426,-460.0,0.00023561,2]
[368125562,1751032249590,-460.0,0.00023561,2]
[368125565,1751032249606,-151.0,0.000236,10]
[368125567,1751032249616,-2000.0,0.00023612,2]
[368125569,1751032249626,-2000.0,0.00023612,2]
[368125571,1751032249636,-500.56304579,0.00023612,2]
[368125573,1751032249646,-2400.0,0.00023612,2]
[368125575,1751032249656,-2000.0,0.00023612,2]
[368125577,1751032249666,-697.0,0.00023613,2]
[368125579,1751032249676,-697.0,0.0002362,2]
[368125581,1751032249686,-6204.46356053,0.00023624,9]
[368125583,1751032249697,-150.0,0.0002364,2]
[368125585,1751032249706,-1600.0,0.00023659,2]
[368125587,1751032249716,-1274.31277733,0.00023661,4]
[368125589,1751032249726,-350.0,0.00023661,4]
[368125591,1751032249738,-695.56927658,0.00023661,4]
[368125593,1751032249748,-500.0,0.00023665,2]
[368125595,1751032249757,-154.06460479,0.00023671,2]
[368125597,1751032249767,-600.0,0.00023671,2]
[368125599,1751032249777,-600.0,0.00023671,2]
[368125601,1751032249786,-600.0,0.00023671,2]
[368125603,1751032249796,-600.0,0.00023671,2]
[368125605,1751032249805,-600.0,0.00023671,2]
[368125607,1751032249815,-600.0,0.00023671,2]
[368125609,1751032249824,-600.0,0.00023671,2]
[368125611,1751032249834,-200.5,0.00023671,2]
[368125613,1751032249844,-460.0,0.00023671,2]
[368125615,1751032249854,-600.0,0.00023671,2]
[368125617,1751032249863,-600.0,0.00023671,2]
[368125619,1751032249873,-600.0,0.00023671,2]
[368125621,1751032249883,-460.0,0.00023671,2]
[368125623,1751032249892,-600.0,0.00023671,2]
[368125624,1751032249901,-460.0,0.00023671,2]
[368125626,1751032249911,-240.3,0.00023671,2]
[368125628,1751032249921,-460.0,0.00023671,2]
[368125630,1751032249931,-600.0,0.00023671,2]
[368125632,1751032249941,-334.12987993,0.00023671,2]
[368125634,1751032249950,-600.0,0.00023671,2]
[368125636,1751032249959,-560.2,0.00023671,2]
[368125638,1751032249969,-375.0,0.00023671,2]
[368125640,1751032249978,-225.0,0.00023671,2]
[368125642,1751032249988,-500.0,0.00023679,2]
[368125644,1751032249998,-1400.0,0.00023681,2]
[368125646,1751032250008,-1600.0,0.00023698,2]
[368125648,1751032250018,-640.0,0.000237,2]
[368125650,1751032250027,-200.0,0.0002371,9]
[368125652,1751032250037,-1400.0,0.00023737,2]
[368125654,1751032250046,-500.0,0.00023748,2]
[368125656,1751032250056,-988.8783625,0.00023753,3]
[368125658,1751032250066,-1274.31277733,0.00023781,4]
[368125660,1751032250075,-350.0,0.00023781,4]
[368125662,1751032250085,-695.56927658,0.00023781,4]
[368125664,1751032250094,-1600.0,0.00023794,2]
[368125666,1751032250105,-827.529621,0.00023802,4]
[368125668,1751032250114,-500.0,0.00023811,2]
[368125670,1751032250124,-182.83945459,0.00023821,2]
[368125672,1751032250134,-6204.46356053,0.00023831,10]
[368125674,1751032250143,-329.96,0.00023835,2]
[368125676,1751032250153,-652.89,0.00023835,2]
[368125678,1751032250162,-2172.8,0.00023835,2]
[368125680,1751032250171,-1061.75,0.00023835,2]
[368125682,1751032250180,-817.76,0.00023835,2]
[368125684,1751032250190,-460.0,0.00023835,2]
[368125686,1751032250200,-2093.98,0.00023835,2]
[368125688,1751032250209,-462.9,0.00023835,2]
[368125690,1751032250220,-585.84,0.00023835,2]
[368125692,1751032250229,-760.73,0.00023835,2]
[368125694,1751032250241,-994.85,0.00023835,2]
[368125696,1751032250250,-707.37,0.00023835,2]
[368125698,1751032250260,-460.0,0.00023835,2]
[368125700,1751032250269,-460.0,0.00023835,2]
[368125702,1751032250279,-460.0,0.00023835,2]
[368125704,1751032250289,-1474.22,0.00023835,2]
[368125705,1751032250299,-460.0,0.00023835,2]
[368125707,1751032250309,-1115.8,0.00023835,2]
[368125709,1751032250319,-2078.45,0.00023835,2]
[368125711,1751032250329,-1750.13,0.00023835,2]
[368125713,1751032250339,-460.0,0.00023835,2]
[368125715,1751032250349,-1434.41,0.00023835,2]
[368125717,1751032250359,-460.0,0.00023835,2]
[368125719,1751032250369,-460.0,0.00023835,2]
[368125721,1751032250378,-900.0,0.0002385,2]
[368125723,1751032250388,-900.0,0.00023858,2]
[368125725,1751032250398,-6439.79279401,0.000239,2]
[368125728,1751032250409,-1274.31,0.000239,4]
[368125729,1751032250419,-350.0,0.000239,4]
[368125731,1751032250429,-695.56,0.000239,4]
[368125733,1751032250442,-1600.0,0.00023914,2]
[368125735,1751032250452,-1500.0,0.00023915,2]
[368125737,1751032250462,-1500.0,0.00023915,2]
[368125739,1751032250471,-1500.0,0.00023915,2]
[368125741,1751032250482,-1500.0,0.00023915,2]
[368125743,1751032250494,-900.0,0.00023916,2]
[368125745,1751032250504,-1600.0,0.00023919,2]
[368125748,1751032250514,-500.0,0.00023921,2]
[368125750,1751032250524,-1600.0,0.00023931,2]
[368125752,1751032250534,-1400.0,0.00023933,2]
[368125753,1751032250544,-900.0,0.00023963,2]
[368125755,1751032250553,-1400.0,0.00023968,2]
[368125757,1751032250563,-500.0,0.00023973,2]
[368125759,1751032250572,-3685.32774384,0.00024,2]
[368125761,1751032250581,-36937.19728568,0.00024,2]
[368125763,1751032250591,-31159.62157819,0.00024,7]
[368125765,1751032250600,-234.11131208,0.00024,60]
[368125767,1751032250610,-1688.49699627,0.00024,2]
[368125769,1751032250620,-151.0,0.00024,14]
[368125771,1751032250630,-10120.82207944,0.00024,2]
[368125773,1751032250639,-1305.71351922,0.00024,30]
[368125775,1751032250649,-132838.91587484,0.00024,2]
[368125777,1751032250659,-178.2769559,0.00024,7]
[368125779,1751032250668,-158.0,0.00024,2]
[368125781,1751032250677,-160.0,0.00024,7]
[368125783,1751032250687,-2000.0,0.00024,2]
[368125785,1751032250697,-2000.0,0.00024,2]
[368125787,1751032250707,-620.39392869,0.00024,4]
[368125789,1751032250716,-48777.2995296,0.00024,2]
[368125800,1751032250819,-605.01,0.00023287,2]
[368125802,1751032250829,-5233.73891226,0.00024,2]
[368125803,1751032250840,-7754.19595751,0.00024,2]
[368125804,1751032250851,-775.84052363,0.00024,2]
[368125805,1751032250944,-460.0,0.00019178,2]
[368125806,1751032250953,-460.0,0.00019452,2]
[368125807,1751032250962,-394.1,0.00019726,2]
[368125808,1751032250971,-286.37978751,0.00022191,2]
[368125809,1751032251007,-322.68677049,0.00022191,2]
[368125811,1751032251018,-152.793442,0.00022191,2]
[368125812,1751032251028,-761.86,0.00022465,2]
[368125814,1751032251038,-761.86,0.00022739,2]
[368125816,1751032251047,-761.86,0.00023013,2]
[368125818,1751032251056,-761.86,0.00023287,2]
[368125820,1751032251065,-605.01,0.00023561,2]
[368125822,1751032251075,-761.86,0.00023561,2]
[368125825,1751032251084,-605.01,0.00023835,2]
[368125826,1751032251093,-761.86,0.00023835,2]
[368125828,1751032251102,-6071.37777258,0.00024,2]
[368125831,1751032251114,-585.13435132,0.00024,2]
[368125833,1751032251125,-6177.02087589,0.00024,2]
[368127709,1751032334535,3000.0,0.00025825,120]
[368127716,1751032649955,5000.0,0.000171,2]
[368127720,1751033120179,157.976659,0.00013699,2]
[368127721,1751033131103,-180.01620146,0.00018449,2]
[368127722,1751033131125,-173.057887,0.00019131,2]
[368127723,1751033131147,-153.0,0.00019177,2]
[368127724,1751033131168,-300.0,0.00019177,2]
[368127725,1751033131189,-300.0,0.00019177,2]
[368127726,1751033131212,-452.76321151,0.00019177,2]
[368127727,1751033157089,-747.23678849,0.00019177,2]
[368127728,1751033157273,-460.0,0.00019178,2]
[368127729,1751033157294,-460.0,0.00019178,2]
[368127730,1751033157316,-104.42032579,0.00019178,2]
[368127731,1751033241157,-229.96861883,0.00019078,2]
[368127732,1751033241178,-2.03131465,0.00019177,2]
[368127773,1751033438966,-5951.08891974,0.00018383,2]
[368127774,1751033438977,-387.828,0.00018383,2]
[368127775,1751033439022,-594.78239997,0.00018383,2]
[368127776,1751033439135,-17966.30068029,0.00018383,2]
[368127777,1751033439146,-227.5190918,0.000189,2]
[368127778,1751033439155,-201.22254145,0.00019078,2]
[368127779,1751033439164,-1197.96868535,0.00019177,2]
[368127780,1751033439173,-460.0,0.00019178,2]
[368127781,1751033439182,-460.0,0.00019178,2]
[368127782,1751033439192,-460.0,0.00019178,2]
[368127784,1751033439201,-460.0,0.00019178,2]
[368127785,1751033439211,-460.0,0.00019178,2]
[368127786,1751033439220,-270.0,0.00019178,2]
[368127787,1751033439229,-460.0,0.00019178,2]
[368127788,1751033439238,-460.0,0.00019178,2]
[368127789,1751033439248,-460.0,0.00019178,2]
[368127790,1751033439257,-460.0,0.00019178,2]
[368127791,1751033439266,-460.0,0.00019178,2]
[368127792,1751033439275,-460.0,0.00019178,2]
[368127793,1751033439284,-460.0,0.00019178,2]
[368127794,1751033439293,-460.0,0.00019178,2]
[368127795,1751033439302,-460.0,0.00019178,2]
[368127796,1751033439311,-255.98505231,0.00019178,2]
[368127797,1751033439320,-460.0,0.00019178,2]
[368127798,1751033439329,-460.0,0.00019178,2]
[368127799,1751033439338,-460.0,0.00019178,2]
[368127800,1751033439347,-460.0,0.00019178,2]
[368127801,1751033439356,-185.72,0.00019178,2]
[368127802,1751033439365,-321.25546775,0.00019178,2]
[368127803,1751033439374,-473.35861997,0.00019178,2]
[368127804,1751033439383,-460.0,0.00019178,2]
[368127805,1751033439392,-460.0,0.00019178,2]
[368127806,1751033439401,-460.0,0.00019178,2]
[368127807,1751033439411,-460.0,0.00019178,2]
[368127808,1751033439422,-460.0,0.00019178,2]
[368127809,1751033439433,-460.0,0.00019178,2]
[368127810,1751033439443,-460.0,0.00019178,2]
[368127811,1751033439453,-460.0,0.00019178,2]
[368127812,1751033439463,-523.34,0.00019178,2]
[368127813,1751033439474,-605.55,0.00019178,2]
[368127814,1751033439483,-460.0,0.00019178,2]
[368127815,1751033439492,-1230.05,0.00019178,2]
[368127816,1751033439501,-460.0,0.00019178,2]
[368127817,1751033439510,-460.0,0.00019178,2]
[368127818,1751033439520,-460.0,0.00019178,2]
[368127819,1751033439529,-460.0,0.00019178,2]
[368127820,1751033439539,-460.0,0.00019178,2]
[368127821,1751033439548,-460.0,0.00019178,2]
[368127822,1751033439558,-561.88,0.00019178,2]
[368127823,1751033439567,-2534.93,0.00019178,2]
[368127824,1751033439576,-460.0,0.00019178,2]
[368127825,1751033439586,-460.0,0.00019178,2]
[368127826,1751033439597,-460.0,0.00019178,2]
[368127827,1751033439606,-447.70926067,0.00019178,2]
[368127828,1751033439615,-460.0,0.00019178,2]
[368127829,1751033439625,-392.28710508,0.00019178,2]
[368127830,1751033439634,-460.0,0.00019178,2]
[368127831,1751033439644,-679.58,0.00019178,2]
[368127832,1751033439654,-460.0,0.00019178,2]
[368127833,1751033439664,-460.0,0.00019178,2]
[368127834,1751033439673,-460.0,0.00019178,2]
[368127835,1751033439683,-460.0,0.00019178,2]
[368127836,1751033439693,-213.5,0.00019178,2]
[368127837,1751033439702,-460.0,0.00019178,2]
[368127838,1751033439711,-794.12,0.00019178,2]
[368127839,1751033439722,-460.0,0.00019178,2]
[368127840,1751033439731,-460.0,0.00019178,2]
[368127841,1751033439740,-423.0909058,0.00019178,2]
[368127842,1751033439749,-460.0,0.00019178,2]
[368127843,1751033439759,-2482.73,0.00019178,2]
[368127844,1751033439769,-1022.87,0.00019178,2]
[368127845,1751033439778,-476.22,0.00019178,2]
[368127846,1751033439788,-530.51,0.00019178,2]
[368127847,1751033439799,-460.0,0.00019178,2]
[368127848,1751033439808,-460.0,0.00019178,2]
[368127849,1751033439818,-460.0,0.00019178,2]
[368127850,1751033439827,-467.76444803,0.00019178,2]
[368127851,1751033439837,-460.0,0.00019178,2]
[368127852,1751033439847,-460.0,0.00019178,2]
[368127853,1751033439857,-474.55465651,0.00019178,2]
[368127854,1751033439866,-460.0,0.00019178,2]
[368127855,1751033439875,-460.0,0.00019178,2]
[368127856,1751033439885,-460.0,0.00019178,2]
[368127857,1751033439894,-460.0,0.00019178,2]
[368127858,1751033439903,-460.0,0.00019178,2]
[368127859,1751033439913,-1198.43,0.00019178,2]
[368127860,1751033439922,-460.0,0.00019178,2]
[368127861,1751033439931,-460.0,0.00019178,2]
[368127862,1751033439941,-795.23,0.00019178,2]
[368127863,1751033439951,-460.0,0.00019178,2]
[368127864,1751033439960,-513.31,0.00019178,2]
[368127865,1751033439970,-460.0,0.00019178,2]
[368127866,1751033439980,-513.86635749,0.00019178,2]
[368127868,1751033439989,-460.0,0.00019178,2]
[368127869,1751033439999,-460.0,0.00019178,2]
[368127870,1751033440008,-861.41,0.00019178,2]
[368127871,1751033440018,-2247.86,0.00019178,2]
[368127872,1751033440028,-496.04,0.00019178,2]
[368127873,1751033440037,-500.0,0.00019178,2]
[368127874,1751033440046,-500.0,0.00019178,2]
[368127875,1751033440056,-460.0,0.00019178,2]
[368127876,1751033440065,-1799.16,0.00019178,2]
[368127877,1751033440077,-158.69775373,0.00019178,2]
[368127878,1751033440087,-460.0,0.00019178,2]
[368127879,1751033440096,-460.0,0.00019178,2]
[368127880,1751033440105,-460.0,0.00019178,2]
[368127881,1751033440116,-460.0,0.00019178,2]
[368127882,1751033440126,-853.43,0.00019178,2]
[368127883,1751033440135,-460.0,0.00019178,2]
[368127884,1751033440147,-460.0,0.00019178,2]
[368127885,1751033440157,-460.0,0.00019178,2]
[368127886,1751033440167,-2113.96,0.00019178,2]
[368127887,1751033440176,-460.0,0.00019178,2]
[368127888,1751033440186,-460.0,0.00019178,2]
[368127890,1751033440195,-460.0,0.00019178,2]
[368127892,1751033440204,-460.0,0.00019178,2]
[368127894,1751033440214,-518.69,0.00019178,2]
[368127896,1751033440223,-500.82241896,0.00019178,2]
[368127898,1751033440235,-460.0,0.00019178,2]
[368127899,1751033440248,-460.0,0.00019178,2]
[368127900,1751033440257,-460.0,0.00019178,2]
[368127901,1751033440266,-460.0,0.00019178,2]
[368127902,1751033440275,-460.0,0.00019178,2]
[368127903,1751033440284,-406.77585399,0.00019178,2]
[368127904,1751033440294,-460.0,0.00019178,2]
[368127905,1751033440304,-460.0,0.00019178,2]
[368127907,1751033440314,-460.0,0.00019178,2]
[368127908,1751033440323,-1589.51,0.00019178,2]
[368127910,1751033440332,-182.817708,0.00019178,2]
[368127911,1751033440341,-527.81294865,0.00019178,2]
[368127912,1751033440351,-460.0,0.0001945,2]
[368127913,1751033440361,-500.0,0.00019451,2]
[368127914,1751033440370,-500.0,0.00019451,2]
[368127915,1751033440379,-460.0,0.00019452,2]